[Event "*** Titled Tuesday 3|2 Blitz"]
[Site "Chess.com"]
[Date "2016.01.05"]
[Round "8"]
[White "Hikaru"]
[Black "nijat_a"]
[Result "0-1"]
[WhiteElo "2874"]
[BlackElo "2741"]
[TimeControl "180+2"]
[EndTime "18:41:54 PST"]
[Termination "nijat_a won on time"]

1. d4 {[%clk 0:02:59.8]} 1... Nf6 {[%clk 0:03:00.8]} 2. Bf4 {[%clk 0:02:53.6]}
2... c5 {[%clk 0:02:58.3]} 3. e3 {[%clk 0:02:50.8]} 3... e6 {[%clk 0:02:59]} 4.
c3 {[%clk 0:02:50]} 4... Nc6 {[%clk 0:02:59.7]} 5. Nf3 {[%clk 0:02:49.2]} 5...
d5 {[%clk 0:02:59]} 6. Nbd2 {[%clk 0:02:49.9]} 6... Be7 {[%clk 0:02:59.6]} 7.
Bd3 {[%clk 0:02:48.2]} 7... O-O {[%clk 0:02:59.4]} 8. h3 {[%clk 0:02:49.3]} 8...
b6 {[%clk 0:02:54.4]} 9. O-O {[%clk 0:02:49.4]} 9... Bb7 {[%clk 0:02:55.4]} 10.
a3 {[%clk 0:02:47.4]} 10... Re8 {[%clk 0:02:53.3]} 11. b4 {[%clk 0:02:47.9]}
11... Qc8 {[%clk 0:02:09.4]} 12. Qe2 {[%clk 0:02:39.9]} 12... Rd8 {[%clk
0:01:52]} 13. Rac1 {[%clk 0:02:38.2]} 13... c4 {[%clk 0:01:46.4]} 14. Bc2 {[%clk
0:02:36.6]} 14... b5 {[%clk 0:01:43.4]} 15. a4 {[%clk 0:02:37.7]} 15... a5
{[%clk 0:01:37.8]} 16. axb5 {[%clk 0:02:32.6]} 16... Na7 {[%clk 0:01:39.1]} 17.
bxa5 {[%clk 0:02:16.9]} 17... Nxb5 {[%clk 0:01:39.6]} 18. Ba4 {[%clk 0:02:18.4]}
18... Rxa5 {[%clk 0:01:33.9]} 19. Bxb5 {[%clk 0:02:19.7]} 19... Rxb5 {[%clk
0:01:35.8]} 20. Rb1 {[%clk 0:02:20.5]} 20... Ra5 {[%clk 0:01:34.4]} 21. Ne5
{[%clk 0:02:15.8]} 21... Ra3 {[%clk 0:01:31.9]} 22. Rfc1 {[%clk 0:02:17]} 22...
Nd7 {[%clk 0:01:30]} 23. Nxd7 {[%clk 0:02:15.5]} 23... Qxd7 {[%clk 0:01:31.4]}
24. Nf3 {[%clk 0:02:17.2]} 24... f6 {[%clk 0:01:30.1]} 25. Rb6 {[%clk
0:02:13.7]} 25... Rda8 {[%clk 0:01:25]} 26. Qb2 {[%clk 0:02:13.7]} 26... Bc6
{[%clk 0:01:25.7]} 27. Rb1 {[%clk 0:02:01]} 27... Kf7 {[%clk 0:01:26.2]} 28. Qc2
{[%clk 0:02:01.1]} 28... g6 {[%clk 0:01:25.5]} 29. g4 {[%clk 0:01:59.8]} 29...
Bd8 {[%clk 0:01:23.5]} 30. g5 {[%clk 0:01:43.9]} 30... Bxb6 {[%clk 0:01:21.4]}
31. Rxb6 {[%clk 0:01:45.8]} 31... Ra2 {[%clk 0:01:18.5]} 32. Qd1 {[%clk
0:01:31]} 32... Ba4 {[%clk 0:01:06.6]} 33. Qf1 {[%clk 0:01:22.1]} 33... Qa7
{[%clk 0:00:56.7]} 34. Rd6 {[%clk 0:01:14.6]} 34... Bc2 {[%clk 0:00:54.6]} 35.
Qg2 {[%clk 0:01:15.7]} 35... Be4 {[%clk 0:00:45.2]} 36. gxf6 {[%clk 0:01:16.7]}
36... Bxf3 {[%clk 0:00:45.6]} 37. Qxf3 {[%clk 0:01:18.6]} 37... Ra6 {[%clk
0:00:45.3]} 38. Kg2 {[%clk 0:01:10]} 38... Qb7 {[%clk 0:00:44.4]} 39. Qg3 {[%clk
0:01:06.1]} 39... Rxd6 {[%clk 0:00:43.3]} 40. Bxd6 {[%clk 0:01:08]} 40... Qb1
{[%clk 0:00:43.8]} 41. Bb4 {[%clk 0:01:07.8]} 41... Qe4+ {[%clk 0:00:32.3]} 42.
Kh2 {[%clk 0:01:09]} 42... Kxf6 {[%clk 0:00:32]} 43. Qc7 {[%clk 0:01:07.8]}
43... g5 {[%clk 0:00:23.3]} 44. Bd6 {[%clk 0:01:03.5]} 44... Kg6 {[%clk
0:00:17.5]} 45. Be5 {[%clk 0:01:04.1]} 45... Qf5 {[%clk 0:00:16.8]} 46. Kg3
{[%clk 0:00:50.1]} 46... Ra1 {[%clk 0:00:15.3]} 47. f4 {[%clk 0:00:32.5]} 47...
Rg1+ {[%clk 0:00:12]} 48. Kh2 {[%clk 0:00:29.8]} 48... Re1 {[%clk 0:00:11.4]}
0-1

[Event "*** Titled Tuesday 3|2 Blitz"]
[Site "Chess.com"]
[Date "2016.01.05"]
[Round "8"]
[White "Gabrielian_Artur"]
[Black "LADIESGET2KNOWME"]
[Result "1-0"]
[WhiteElo "2468"]
[BlackElo "2291"]
[TimeControl "180+2"]
[EndTime "18:42:17 PST"]
[Termination "Gabrielian_Artur won by checkmate"]

1. e4 {[%clk 0:03:00.7]} 1... e6 {[%clk 0:03:00.6]} 2. d3 {[%clk 0:03:01.4]}
2... d5 {[%clk 0:03:02.1]} 3. Nd2 {[%clk 0:03:02.6]} 3... Nf6 {[%clk 0:03:03.5]}
4. g3 {[%clk 0:03:04.1]} 4... Bc5 {[%clk 0:03:04.7]} 5. Bg2 {[%clk 0:03:04.9]}
5... dxe4 {[%clk 0:03:04.4]} 6. dxe4 {[%clk 0:03:05.8]} 6... e5 {[%clk
0:03:05.4]} 7. Ngf3 {[%clk 0:03:04.7]} 7... Nc6 {[%clk 0:03:06.8]} 8. O-O {[%clk
0:03:05]} 8... O-O {[%clk 0:03:07.6]} 9. c3 {[%clk 0:03:06.4]} 9... a5 {[%clk
0:03:09.2]} 10. a4 {[%clk 0:03:06.8]} 10... b6 {[%clk 0:03:09.7]} 11. Nc4 {[%clk
0:02:57.6]} 11... Ba6 {[%clk 0:03:06.8]} 12. Qe2 {[%clk 0:02:44.3]} 12... Qe7
{[%clk 0:03:03.5]} 13. b3 {[%clk 0:02:40.5]} 13... Qe6 {[%clk 0:02:52.2]} 14. h3
{[%clk 0:02:34]} 14... h6 {[%clk 0:02:45.9]} 15. Nh4 {[%clk 0:02:33.4]} 15...
Ne7 {[%clk 0:02:28.9]} 16. Kh2 {[%clk 0:02:27.5]} 16... Rad8 {[%clk 0:02:25.9]}
17. Bb2 {[%clk 0:02:09.5]} 17... Rd7 {[%clk 0:02:22.1]} 18. Rad1 {[%clk
0:02:09.4]} 18... Rfd8 {[%clk 0:02:23.5]} 19. Rxd7 {[%clk 0:02:09.4]} 19... Qxd7
{[%clk 0:02:09.5]} 20. Nf3 {[%clk 0:02:08.2]} 20... Nc6 {[%clk 0:02:00.9]} 21.
Re1 {[%clk 0:02:07.3]} 21... Qe6 {[%clk 0:01:55.7]} 22. Bf1 {[%clk 0:02:03.6]}
22... Bxc4 {[%clk 0:01:49]} 23. bxc4 {[%clk 0:02:04.1]} 23... Qd7 {[%clk
0:01:39.9]} 24. Bc1 {[%clk 0:02:01.1]} 24... Qd6 {[%clk 0:01:34.4]} 25. Nh4
{[%clk 0:01:58]} 25... Ne7 {[%clk 0:01:34.9]} 26. Nf5 {[%clk 0:01:52]} 26... Qd7
{[%clk 0:01:16.2]} 27. Nxe7+ {[%clk 0:01:24.2]} 27... Bxe7 {[%clk 0:01:12.7]}
28. Qc2 {[%clk 0:01:24.8]} 28... Bc5 {[%clk 0:01:10.2]} 29. Kg2 {[%clk
0:01:25.1]} 29... Qd6 {[%clk 0:01:03.2]} 30. Be2 {[%clk 0:01:24.2]} 30... Qe7
{[%clk 0:01:00.4]} 31. Bf3 {[%clk 0:01:22.4]} 31... Rd6 {[%clk 0:00:53.3]} 32.
Rd1 {[%clk 0:01:17.6]} 32... Qd7 {[%clk 0:00:53.2]} 33. Rxd6 {[%clk 0:01:18.1]}
33... Qxd6 {[%clk 0:00:55.1]} 34. h4 {[%clk 0:01:19.1]} 34... Ba3 {[%clk
0:00:43.9]} 35. Bd2 {[%clk 0:01:19.6]} 35... Bc5 {[%clk 0:00:43.8]} 36. g4
{[%clk 0:01:14]} 36... Nd7 {[%clk 0:00:37.5]} 37. g5 {[%clk 0:01:14.5]} 37...
hxg5 {[%clk 0:00:37.1]} 38. hxg5 {[%clk 0:01:15.8]} 38... Nf8 {[%clk 0:00:38.2]}
39. Bg4 {[%clk 0:01:12.8]} 39... Ne6 {[%clk 0:00:33.5]} 40. Bc1 {[%clk
0:01:07.6]} 40... Qe7 {[%clk 0:00:25.1]} 41. g6 {[%clk 0:00:44.3]} 41... fxg6
{[%clk 0:00:24.1]} 42. Qd3 {[%clk 0:00:44.9]} 42... Nf4+ {[%clk 0:00:17.8]} 43.
Bxf4 {[%clk 0:00:45.3]} 43... exf4 {[%clk 0:00:19.7]} 44. Qd5+ {[%clk
0:00:36.6]} 44... Kh7 {[%clk 0:00:19.3]} 45. e5 {[%clk 0:00:27]} 45... Qh4
{[%clk 0:00:19.8]} 46. Qf3 {[%clk 0:00:27.8]} 46... Bxf2 {[%clk 0:00:16.3]} 47.
Qxf4 {[%clk 0:00:26.7]} 47... Bc5 {[%clk 0:00:09.9]} 48. e6 {[%clk 0:00:15.6]}
48... Bd6 {[%clk 0:00:10]} 49. Qe4 {[%clk 0:00:13.5]} 49... Qg3+ {[%clk
0:00:10.1]} 50. Kf1 {[%clk 0:00:14.4]} 50... Qxc3 {[%clk 0:00:10.8]} 51. e7
{[%clk 0:00:12.8]} 51... Bxe7 {[%clk 0:00:08.7]} 52. Qh1+ {[%clk 0:00:11.6]}
52... Kg8 {[%clk 0:00:07.3]} 53. Be6+ {[%clk 0:00:13.1]} 53... Kf8 {[%clk
0:00:07.3]} 54. Qa8+ {[%clk 0:00:13.5]} 54... Bd8 {[%clk 0:00:06]} 55. Qxd8#
{[%clk 0:00:14.4]} 1-0

[Event "*** Titled Tuesday 3|2 Blitz"]
[Site "Chess.com"]
[Date "2016.01.05"]
[Round "9"]
[White "oskariot"]
[Black "UltimateCrusher2"]
[Result "1-0"]
[WhiteElo "2312"]
[BlackElo "2033"]
[TimeControl "180+2"]
[EndTime "18:49:39 PST"]
[Termination "oskariot won by resignation"]

1. g3 {[%clk 0:03:01.9]} 1... b6 {[%clk 0:03:01.9]} 2. Bg2 {[%clk 0:03:03.8]}
2... d5 {[%clk 0:02:56.2]} 3. c4 {[%clk 0:03:03.2]} 3... Bb7 {[%clk 0:02:57.4]}
4. Qa4+ {[%clk 0:02:50.9]} 4... Bc6 {[%clk 0:02:40.6]} 5. Qc2 {[%clk 0:02:42.8]}
5... d4 {[%clk 0:02:41.5]} 6. Bxc6+ {[%clk 0:02:40.9]} 6... Nxc6 {[%clk
0:02:43.4]} 7. Nf3 {[%clk 0:02:42.1]} 7... e5 {[%clk 0:02:44.5]} 8. O-O {[%clk
0:02:40.9]} 8... Bd6 {[%clk 0:02:42.7]} 9. a3 {[%clk 0:02:40.7]} 9... a5 {[%clk
0:02:43]} 10. e3 {[%clk 0:02:41.4]} 10... Qf6 {[%clk 0:02:26.2]} 11. Qe4 {[%clk
0:02:26.2]} 11... Nge7 {[%clk 0:02:21.4]} 12. exd4 {[%clk 0:02:25.5]} 12... exd4
{[%clk 0:02:22.7]} 13. d3 {[%clk 0:02:26.7]} 13... h6 {[%clk 0:02:21.7]} 14.
Nbd2 {[%clk 0:02:20.9]} 14... O-O {[%clk 0:02:21.4]} 15. Qg4 {[%clk 0:02:21.6]}
15... Qf5 {[%clk 0:02:07.4]} 16. Qxf5 {[%clk 0:02:20.6]} 16... Nxf5 {[%clk
0:02:08.5]} 17. Ne4 {[%clk 0:02:21.9]} 17... Be7 {[%clk 0:01:52.5]} 18. Bf4
{[%clk 0:02:22.1]} 18... Rac8 {[%clk 0:01:50.7]} 19. Rfe1 {[%clk 0:02:23.3]}
19... g5 {[%clk 0:01:50]} 20. Bd2 {[%clk 0:02:24.2]} 20... Nd6 {[%clk
0:01:44.2]} 21. Nxd6 {[%clk 0:02:24.8]} 21... Bxd6 {[%clk 0:01:46.1]} 22. g4
{[%clk 0:02:25.7]} 22... Rfe8 {[%clk 0:01:45.1]} 23. Kg2 {[%clk 0:02:25.7]}
23... Kg7 {[%clk 0:01:41.2]} 24. Rxe8 {[%clk 0:02:24.5]} 24... Rxe8 {[%clk
0:01:41.9]} 25. Re1 {[%clk 0:02:26.4]} 25... Rxe1 {[%clk 0:01:42.8]} 26. Nxe1
{[%clk 0:02:28.3]} 26... Ne5 {[%clk 0:01:39.8]} 27. h3 {[%clk 0:02:30.2]} 27...
c5 {[%clk 0:01:40.8]} 28. f4 {[%clk 0:02:27.9]} 28... Ng6 {[%clk 0:01:35.1]} 29.
fxg5 {[%clk 0:02:24.5]} 29... hxg5 {[%clk 0:01:37]} 30. Bxg5 {[%clk 0:02:25.2]}
30... Nf4+ {[%clk 0:01:23.8]} 31. Bxf4 {[%clk 0:02:25.7]} 31... Bxf4 {[%clk
0:01:25.7]} 32. b3 {[%clk 0:02:26.1]} 32... Kg6 {[%clk 0:01:15.7]} 33. Kf3
{[%clk 0:02:25.7]} 33... Bd2 {[%clk 0:01:14]} 34. Ng2 {[%clk 0:02:26.4]} 34...
f5 {[%clk 0:01:14.2]} 35. Nh4+ {[%clk 0:02:25.4]} 1-0

[Event "*** Titled Tuesday 3|2 Blitz"]
[Site "Chess.com"]
[Date "2016.01.05"]
[Round "9"]
[White "JusticeBot"]
[Black "Cecile_Haussernot"]
[Result "1-0"]
[WhiteElo "2454"]
[BlackElo "2185"]
[TimeControl "180+2"]
[EndTime "18:49:51 PST"]
[Termination "JusticeBot won by resignation"]

1. e4 {[%clk 0:03:01.9]} 1... c5 {[%clk 0:03:01]} 2. c3 {[%clk 0:03:03.2]} 2...
Nf6 {[%clk 0:02:59.9]} 3. e5 {[%clk 0:03:04.7]} 3... Nd5 {[%clk 0:03:00.6]} 4.
d4 {[%clk 0:03:06.6]} 4... cxd4 {[%clk 0:03:00.9]} 5. Nf3 {[%clk 0:03:08.5]}
5... e6 {[%clk 0:03:01.9]} 6. Bc4 {[%clk 0:03:10.3]} 6... d6 {[%clk 0:03:01.2]}
7. cxd4 {[%clk 0:03:10.9]} 7... Be7 {[%clk 0:03:01.3]} 8. O-O {[%clk 0:03:12.3]}
8... O-O {[%clk 0:03:01.6]} 9. Qe2 {[%clk 0:03:14.2]} 9... b6 {[%clk 0:02:57.9]}
10. Nc3 {[%clk 0:03:11.1]} 10... Nxc3 {[%clk 0:02:57.2]} 11. bxc3 {[%clk
0:03:13]} 11... Qc7 {[%clk 0:02:54.2]} 12. Bd3 {[%clk 0:03:08.2]} 12... Bb7
{[%clk 0:02:49.4]} 13. exd6 {[%clk 0:02:58.7]} 13... Bxd6 {[%clk 0:02:49.9]} 14.
Bxh7+ {[%clk 0:02:49.8]} 14... Kxh7 {[%clk 0:02:47.5]} 15. Ng5+ {[%clk
0:02:51.7]} 15... Kg8 {[%clk 0:02:08.9]} 16. Qh5 {[%clk 0:02:51.3]} 16... Rd8
{[%clk 0:02:06]} 17. Re1 {[%clk 0:02:40.3]} 17... e5 {[%clk 0:01:19.2]} 18. dxe5
{[%clk 0:02:32.6]} 18... Bxe5 {[%clk 0:01:17]} 19. Ba3 {[%clk 0:01:51.7]} 19...
Bxh2+ {[%clk 0:00:19.7]} 20. Kh1 {[%clk 0:01:50.4]} 20... Bd6 {[%clk 0:00:17.2]}
21. Qh7+ {[%clk 0:01:49.4]} 1-0

[Event "*** Titled Tuesday 3|2 Blitz"]
[Site "Chess.com"]
[Date "2016.01.05"]
[Round "9"]
[White "Colombiano07"]
[Black "AdrianaNikolova"]
[Result "0-1"]
[WhiteElo "2168"]
[BlackElo "2147"]
[TimeControl "180+2"]
[EndTime "18:50:16 PST"]
[Termination "AdrianaNikolova won by checkmate"]

1. d4 {[%clk 0:03:01.9]} 1... Nf6 {[%clk 0:03:00.3]} 2. Nc3 {[%clk 0:02:41.9]}
2... e6 {[%clk 0:03:02.2]} 3. e4 {[%clk 0:02:35.1]} 3... d6 {[%clk 0:03:03.2]}
4. Nf3 {[%clk 0:02:33.3]} 4... Nc6 {[%clk 0:02:57.8]} 5. Bb5 {[%clk 0:02:22.3]}
5... a6 {[%clk 0:02:57.7]} 6. Bxc6+ {[%clk 0:02:14.7]} 6... bxc6 {[%clk
0:02:59.6]} 7. Qe2 {[%clk 0:02:14.7]} 7... h6 {[%clk 0:02:59.8]} 8. e5 {[%clk
0:01:20.5]} 8... Nd7 {[%clk 0:02:54.1]} 9. d5 {[%clk 0:01:12.3]} 9... cxd5
{[%clk 0:02:49.5]} 10. exd6 {[%clk 0:01:08.8]} 10... cxd6 {[%clk 0:02:48.8]} 11.
Nxd5 {[%clk 0:01:09.3]} 11... Bb7 {[%clk 0:02:30.6]} 12. Nf4 {[%clk 0:00:38.3]}
12... Be7 {[%clk 0:02:16.2]} 13. Bd2 {[%clk 0:00:37.6]} 13... Bf6 {[%clk
0:02:16.3]} 14. O-O-O {[%clk 0:00:37.7]} 14... Qb6 {[%clk 0:02:12.6]} 15. Nd3
{[%clk 0:00:35]} 15... Nc5 {[%clk 0:02:10.8]} 16. c3 {[%clk 0:00:22.2]} 16...
O-O {[%clk 0:02:06.4]} 17. Be3 {[%clk 0:00:23.1]} 17... Nxd3+ {[%clk 0:02:04.1]}
18. Qxd3 {[%clk 0:00:23.9]} 18... Qa5 {[%clk 0:02:04.6]} 19. Kb1 {[%clk
0:00:21.6]} 19... Qa4 {[%clk 0:02:02.6]} 20. Qxd6 {[%clk 0:00:20]} 20... Bd5
{[%clk 0:01:53]} 21. Qa3 {[%clk 0:00:07.7]} 21... Be4+ {[%clk 0:01:46.4]} 22.
Kc1 {[%clk 0:00:04.4]} 22... Qc2# {[%clk 0:01:46.3]} 0-1

[Event "*** Titled Tuesday 3|2 Blitz"]
[Site "Chess.com"]
[Date "2016.01.05"]
[Round "9"]
[White "Fibrinogen"]
[Black "zanbato17"]
[Result "1-0"]
[WhiteElo "2219"]
[BlackElo "2236"]
[TimeControl "180+2"]
[EndTime "18:51:05 PST"]
[Termination "Fibrinogen won by resignation"]

1. e4 {[%clk 0:03:00.6]} 1... d5 {[%clk 0:03:00.9]} 2. exd5 {[%clk 0:03:01.2]}
2... Qxd5 {[%clk 0:03:02.8]} 3. Nc3 {[%clk 0:03:02.8]} 3... Qa5 {[%clk 0:03:04]}
4. Nf3 {[%clk 0:03:03.6]} 4... c6 {[%clk 0:03:05.1]} 5. d4 {[%clk 0:03:04.6]}
5... Nf6 {[%clk 0:03:06.1]} 6. Bc4 {[%clk 0:03:05]} 6... Bf5 {[%clk 0:03:06.9]}
7. O-O {[%clk 0:03:05.5]} 7... e6 {[%clk 0:03:08.1]} 8. Bb3 {[%clk 0:03:02.7]}
8... Qc7 {[%clk 0:03:07.1]} 9. Ne2 {[%clk 0:02:58.8]} 9... Bd6 {[%clk
0:03:07.2]} 10. Ng3 {[%clk 0:03:00]} 10... Bg6 {[%clk 0:03:07.8]} 11. Qe2 {[%clk
0:02:59.3]} 11... O-O {[%clk 0:03:08.3]} 12. Ne5 {[%clk 0:02:59.9]} 12... Nbd7
{[%clk 0:03:08.9]} 13. Nxg6 {[%clk 0:02:59.5]} 13... hxg6 {[%clk 0:03:10.8]} 14.
Re1 {[%clk 0:02:55]} 14... Nd5 {[%clk 0:03:11]} 15. c4 {[%clk 0:02:53]} 15...
N5f6 {[%clk 0:03:09.4]} 16. Qf3 {[%clk 0:02:49.6]} 16... c5 {[%clk 0:03:09.2]}
17. dxc5 {[%clk 0:02:44.9]} 17... Nxc5 {[%clk 0:03:11.1]} 18. Bc2 {[%clk
0:02:45.9]} 18... Rad8 {[%clk 0:03:10.4]} 19. Bg5 {[%clk 0:02:45.1]} 19... Be7
{[%clk 0:03:06.7]} 20. h4 {[%clk 0:02:44.8]} 20... Nh7 {[%clk 0:03:01]} 21. Bf4
{[%clk 0:02:30.7]} 21... Bd6 {[%clk 0:03:01.4]} 22. Be3 {[%clk 0:02:29.8]} 22...
Rd7 {[%clk 0:02:52.1]} 23. h5 {[%clk 0:02:28]} 23... Bxg3 {[%clk 0:02:48]} 24.
fxg3 {[%clk 0:02:22.3]} 24... gxh5 {[%clk 0:02:31.1]} 25. Qxh5 {[%clk
0:02:24.2]} 25... Nf6 {[%clk 0:02:30.3]} 26. Qxc5 {[%clk 0:02:21.9]} 26... Qxc5
{[%clk 0:02:30.2]} 27. Bxc5 {[%clk 0:02:22.4]} 27... Rc8 {[%clk 0:02:31.9]} 28.
Be3 {[%clk 0:02:18.9]} 28... Rxc4 {[%clk 0:02:32.6]} 29. Bb3 {[%clk 0:02:20.2]}
29... Re4 {[%clk 0:02:30.3]} 30. Bf2 {[%clk 0:02:18.8]} 30... Rxe1+ {[%clk
0:02:27.7]} 31. Bxe1 {[%clk 0:02:20]} 31... Ne4 {[%clk 0:02:24.8]} 32. Rd1
{[%clk 0:02:20]} 32... Rc7 {[%clk 0:02:25.8]} 33. Kf1 {[%clk 0:02:16.8]} 33...
g6 {[%clk 0:02:26.7]} 34. Ke2 {[%clk 0:02:17.8]} 34... b6 {[%clk 0:02:25.4]} 35.
Ke3 {[%clk 0:02:18.5]} 35... Nc5 {[%clk 0:02:26.4]} 36. Bc2 {[%clk 0:02:17.2]}
36... Nd7 {[%clk 0:02:25]} 37. Bc3 {[%clk 0:02:17.1]} 37... b5 {[%clk
0:02:21.4]} 38. Rh1 {[%clk 0:02:12.6]} 38... e5 {[%clk 0:02:19.2]} 39. Bd3
{[%clk 0:02:07.7]} 39... a6 {[%clk 0:02:18.8]} 40. g4 {[%clk 0:02:02]} 40... Kg7
{[%clk 0:02:07]} 41. g5 {[%clk 0:02:01.8]} 41... Rc5 {[%clk 0:02:06.4]} 42. Be2
{[%clk 0:01:57]} 42... Nb6 {[%clk 0:02:04.7]} 43. Ke4 {[%clk 0:01:56.9]} 43...
Nd7 {[%clk 0:02:02]} 44. Rd1 {[%clk 0:01:54.1]} 44... Rc7 {[%clk 0:02:02.4]} 45.
Bg4 {[%clk 0:01:45.5]} 45... Nc5+ {[%clk 0:01:51.9]} 46. Kxe5 {[%clk 0:01:43.8]}
46... Ne6 {[%clk 0:01:38.3]} 47. Bxe6 {[%clk 0:01:41.1]} 47... Re7 {[%clk
0:01:30.3]} 48. Kd6+ {[%clk 0:01:25.6]} 1-0

[Event "*** Titled Tuesday 3|2 Blitz"]
[Site "Chess.com"]
[Date "2016.01.05"]
[Round "9"]
[White "nijat_a"]
[Black "LyonBeast"]
[Result "1/2-1/2"]
[WhiteElo "2742"]
[BlackElo "2757"]
[TimeControl "180+2"]
[EndTime "18:52:00 PST"]
[Termination "Game drawn by agreement"]

1. d4 {[%clk 0:03:01.9]} 1... Nf6 {[%clk 0:02:58.2]} 2. c4 {[%clk 0:03:03.1]}
2... g6 {[%clk 0:02:56.2]} 3. Nc3 {[%clk 0:03:04.3]} 3... d5 {[%clk 0:02:52]} 4.
cxd5 {[%clk 0:03:05]} 4... Nxd5 {[%clk 0:02:53.2]} 5. Nf3 {[%clk 0:03:06.9]}
5... Bg7 {[%clk 0:02:51.7]} 6. Na4 {[%clk 0:03:08]} 6... Nb6 {[%clk 0:02:48]} 7.
e4 {[%clk 0:03:07.8]} 7... O-O {[%clk 0:02:48.6]} 8. Be3 {[%clk 0:03:07.7]} 8...
Bg4 {[%clk 0:02:48.8]} 9. Be2 {[%clk 0:03:08.3]} 9... Nc6 {[%clk 0:02:41.3]} 10.
d5 {[%clk 0:03:09.2]} 10... Ne5 {[%clk 0:02:38.3]} 11. Nxe5 {[%clk 0:03:10]}
11... Bxe2 {[%clk 0:02:39.3]} 12. Qxe2 {[%clk 0:03:11.3]} 12... Nxa4 {[%clk
0:02:40.3]} 13. f4 {[%clk 0:03:12.2]} 13... c6 {[%clk 0:02:38.8]} 14. b3 {[%clk
0:02:44.8]} 14... Nb6 {[%clk 0:02:24.6]} 15. dxc6 {[%clk 0:02:43.6]} 15... Bxe5
{[%clk 0:02:24.3]} 16. fxe5 {[%clk 0:02:44.1]} 16... bxc6 {[%clk 0:02:25]} 17.
O-O {[%clk 0:02:43.7]} 17... Qc8 {[%clk 0:02:21.4]} 18. Bh6 {[%clk 0:02:22.5]}
18... Rd8 {[%clk 0:02:21.1]} 19. Rf3 {[%clk 0:02:08.1]} 19... Qg4 {[%clk
0:02:04.5]} 20. Raf1 {[%clk 0:02:08.6]} 20... Qh5 {[%clk 0:01:53.7]} 21. Qe3
{[%clk 0:02:06.9]} 21... Nd7 {[%clk 0:01:47.6]} 22. Rxf7 {[%clk 0:01:58]} 22...
Nxe5 {[%clk 0:01:48.7]} 23. Rg7+ {[%clk 0:01:58.8]} 23... Kh8 {[%clk 0:01:49.5]}
24. Rxe7 {[%clk 0:01:59.4]} 24... Rd1 {[%clk 0:01:13.3]} 25. Bg7+ {[%clk
0:01:03.9]} 25... Kg8 {[%clk 0:01:13.9]} 26. Qf2 {[%clk 0:01:05.3]} 26... Rxf1+
{[%clk 0:00:58.6]} 27. Qxf1 {[%clk 0:01:07.2]} 27... Qg5 {[%clk 0:00:57.8]} 28.
Rxe5 {[%clk 0:01:04.8]} 28... Qe3+ {[%clk 0:00:58.4]} 29. Kh1 {[%clk 0:01:05.9]}
29... Kxg7 {[%clk 0:00:59.6]} 30. Re7+ {[%clk 0:01:03.7]} 30... Kh6 {[%clk
0:01:00.9]} 31. Re6 {[%clk 0:00:33.4]} 31... Rd8 {[%clk 0:00:56.6]} 32. Rxc6
{[%clk 0:00:33.2]} 32... Rd2 {[%clk 0:00:52.9]} 33. Rc1 {[%clk 0:00:31.1]} 33...
Rf2 {[%clk 0:00:47]} 34. Qe1 {[%clk 0:00:29.1]} 34... Qxe1+ {[%clk 0:00:45.2]}
35. Rxe1 {[%clk 0:00:31]} 35... Rxa2 {[%clk 0:00:46.6]} 36. h3 {[%clk
0:00:30.1]} 1/2-1/2

[Event "*** Titled Tuesday 3|2 Blitz"]
[Site "Chess.com"]
[Date "2016.01.05"]
[Round "9"]
[White "MasterLeif"]
[Black "chesstatour"]
[Result "1-0"]
[WhiteElo "2324"]
[BlackElo "1922"]
[TimeControl "180+2"]
[EndTime "18:52:02 PST"]
[Termination "MasterLeif won by checkmate"]

1. e4 {[%clk 0:03:01.9]} 1... c6 {[%clk 0:03:00.5]} 2. d4 {[%clk 0:03:02.3]}
2... d5 {[%clk 0:03:02.1]} 3. e5 {[%clk 0:03:03.9]} 3... Bf5 {[%clk 0:03:01.8]}
4. h4 {[%clk 0:03:05.2]} 4... h6 {[%clk 0:03:01.2]} 5. g4 {[%clk 0:03:05.5]}
5... Bh7 {[%clk 0:02:52.5]} 6. e6 {[%clk 0:03:06.9]} 6... Nf6 {[%clk 0:02:22.4]}
7. exf7+ {[%clk 0:03:06]} 7... Kxf7 {[%clk 0:02:24.3]} 8. g5 {[%clk 0:02:33.4]}
8... Ne4 {[%clk 0:02:15.9]} 9. Nf3 {[%clk 0:02:29]} 9... Nd7 {[%clk 0:02:09.3]}
10. Bd3 {[%clk 0:02:16.4]} 10... e6 {[%clk 0:02:08]} 11. Nc3 {[%clk 0:02:09.1]}
11... Bb4 {[%clk 0:02:00]} 12. Bd2 {[%clk 0:02:08.2]} 12... Bxc3 {[%clk
0:01:52.2]} 13. bxc3 {[%clk 0:02:07.9]} 13... Bf5 {[%clk 0:01:46.7]} 14. Qe2
{[%clk 0:01:58.3]} 14... h5 {[%clk 0:00:58.8]} 15. c4 {[%clk 0:01:39.8]} 15...
g6 {[%clk 0:00:57.7]} 16. Rb1 {[%clk 0:01:35.8]} 16... b6 {[%clk 0:00:53.8]} 17.
cxd5 {[%clk 0:01:36.9]} 17... exd5 {[%clk 0:00:48.2]} 18. Ne5+ {[%clk
0:01:34.4]} 18... Nxe5 {[%clk 0:00:48.5]} 19. dxe5 {[%clk 0:01:36.3]} 19... Re8
{[%clk 0:00:45.3]} 20. f4 {[%clk 0:01:32.4]} 20... Ng3 {[%clk 0:00:42.8]} 21.
Qf3 {[%clk 0:01:29.8]} 21... Nxh1 {[%clk 0:00:41.5]} 22. Bxf5 {[%clk 0:01:28.4]}
22... gxf5 {[%clk 0:00:40.6]} 23. Qxh5+ {[%clk 0:01:24.2]} 23... Ke6 {[%clk
0:00:37.3]} 24. Qg6+ {[%clk 0:01:07.1]} 24... Kd7 {[%clk 0:00:38]} 25. Qd6+
{[%clk 0:01:02.1]} 25... Kc8 {[%clk 0:00:34.9]} 26. Qxc6+ {[%clk 0:01:01.5]}
26... Kb8 {[%clk 0:00:35.8]} 27. Bb4 {[%clk 0:01:01.9]} 27... a6 {[%clk
0:00:25]} 28. Bd6+ {[%clk 0:01:00.4]} 28... Ka7 {[%clk 0:00:25.3]} 29. Bc7
{[%clk 0:01:00.8]} 29... Rb8 {[%clk 0:00:11.2]} 30. Rxb6 {[%clk 0:00:31.3]}
30... Re6 {[%clk 0:00:06.6]} 31. Rxa6# {[%clk 0:00:29.6]} 1-0